bitfinex-derivatives/quotes_BTCF0:USTF0_20260119
["timestamp","ask_amount","ask_price","bid_price","bid_amount"]
[1768856360192,0.010736,93190.0,93180.0,0.17986044]
[1768856360392,0.010736,93190.0,93181.0,0.0363094]
[1768856362883,0.010735,93197.0,93181.0,0.0363094]
[1768856363188,0.02381565,93196.0,93181.0,0.0363094]
[1768856363386,0.09664,93198.0,93181.0,0.0363094]
[1768856363580,0.02381729,93197.0,93181.0,0.0363094]
[1768856363778,0.02381729,93196.0,93181.0,0.0363094]
[1768856364085,0.09664,93198.0,93181.0,0.0363094]
[1768856364283,0.010736,93196.0,93181.0,0.0363094]
[1768856364483,0.02381918,93195.0,93181.0,0.0363094]
[1768856364877,0.010737,93186.0,93181.0,0.0363094]
[1768856365488,0.010736,93188.0,93181.0,0.0363094]
[1768856366688,0.09664,93198.0,93181.0,0.0363094]
[1768856366897,0.010737,93182.0,93173.0,0.09664]
[1768856367188,0.010737,93188.0,93170.0,0.000161]
[1768856367387,0.010737,93181.0,93169.0,0.00236131]
[1768856367589,0.010737,93181.0,93166.0,0.09664]
[1768856368790,0.010737,93181.0,93166.0,0.13659132]
[1768856369100,0.000161,93183.0,93167.0,0.02921232]
[1768856369693,0.010737,93182.0,93167.0,0.02921232]
[1768856369896,0.010737,93182.0,93168.0,0.01973458]
[1768856370190,0.010737,93180.0,93168.0,0.01973458]
[1768856370387,0.010738,93172.0,93166.0,0.09664]
[1768856370586,0.010738,93176.0,93166.0,0.09664]
[1768856372891,0.010738,93179.0,93166.0,0.09664]
[1768856373296,0.17986044,93180.0,93166.0,0.09664]
[1768856373297,0.010738,93177.0,93166.0,0.09664]
[1768856374300,0.010738,93176.0,93166.0,0.09664]
[1768856374891,0.17986044,93180.0,93166.0,0.09664]
[1768856375091,0.17986044,93180.0,93164.0,0.00236143]
[1768856375293,0.010738,93171.0,93164.0,0.00236143]
[1768856376488,0.010738,93171.0,93164.0,0.02209601]
[1768856377500,0.010738,93174.0,93164.0,0.02209601]
[1768856377801,0.010738,93172.0,93164.0,0.02209601]
[1768856378002,0.010739,93170.0,93164.0,0.02209601]
[1768856381506,0.010739,93170.0,93164.0,1e-08]
[1768856381798,0.010738,93173.0,93164.0,1e-08]
[1768856382599,0.010738,93173.0,93164.0,0.00985761]
[1768856382794,0.09664,93177.0,93164.0,0.00985761]
[1768856382998,0.010738,93173.0,93164.0,0.00985761]
[1768856385610,0.09664,93177.0,93164.0,0.00985761]
[1768856385808,0.010738,93173.0,93164.0,0.00985761]
[1768856386204,0.010738,93172.0,93164.0,0.00985761]
[1768856388006,0.010738,93175.0,93164.0,0.00985761]
[1768856388311,0.010738,93176.0,93164.0,0.00985761]
[1768856388506,0.010738,93175.0,93164.0,0.00985761]
[1768856388902,0.010738,93173.0,93164.0,0.00985761]
[1768856391811,0.09664,93177.0,93164.0,0.00985761]
[1768856392109,0.010738,93172.0,93164.0,0.00985761]
[1768856392309,0.09664,93177.0,93164.0,0.00985761]
[1768856392815,0.010738,93174.0,93164.0,0.00985761]
[1768856396220,0.010738,93172.0,93164.0,0.00985761]
[1768856396518,0.010738,93173.0,93164.0,0.00985761]
[1768856396718,0.010738,93175.0,93164.0,0.00985761]
[1768856397815,0.09664,93177.0,93165.0,0.00994481]
[1768856398020,0.000161,93183.0,93168.0,0.00981544]
[1768856398221,0.000161,93183.0,93172.0,0.01976025]
[1768856398423,0.09664,93188.0,93178.0,0.00981544]
[1768856398623,0.09664,93188.0,93180.0,0.00981544]
[1768856398924,0.107376,93188.0,93180.0,0.00981544]
[1768856399314,0.09664,93188.0,93180.0,0.00981544]
[1768856400215,0.09664,93188.0,93181.0,0.010737]
[1768856400528,8.1e-07,93189.0,93185.0,0.01976025]
[1768856400819,0.00236041,93204.0,93191.0,0.01976025]
[1768856401020,0.27092211,93214.0,93202.0,0.01976025]
[1768856401216,0.00235991,93224.0,93214.0,0.00994481]
[1768856401417,0.00235991,93224.0,93207.0,0.09664]
[1768856401718,0.010733,93222.0,93210.0,0.00016091]
[1768856401923,0.010733,93216.0,93210.0,9.1e-07]
[1768856402119,0.010733,93214.0,93204.0,0.09664]
[1768856402423,0.010733,93220.0,93205.0,0.00981544]
[1768856403015,0.00235991,93224.0,93205.0,0.00981544]
[1768856403323,0.00235991,93224.0,93210.0,0.00981544]
[1768856403520,0.00235991,93224.0,93218.0,0.00981544]
[1768856403720,0.09664,93250.0,93227.0,0.00981544]
[1768856403912,0.01073,93247.0,93231.0,0.00994481]
[1768856404116,0.01073,93247.0,93221.0,0.010733]
[1768856404117,0.01073,93247.0,93233.0,0.00994481]
[1768856404314,0.00235929,93249.0,93235.0,0.00994481]
[1768856404516,0.01308829,93249.0,93237.0,0.00994481]
[1768856404717,0.01308829,93249.0,93239.0,0.00981544]
[1768856404921,0.00235929,93249.0,93240.0,0.00981544]
[1768856405120,0.00998073,93285.0,93243.0,0.00994481]
[1768856405316,0.0423589,93264.0,93247.0,0.00994481]
[1768856405517,0.0023589,93264.0,93248.0,0.00981544]
[1768856405724,0.0023589,93264.0,93250.0,0.00994481]
[1768856405919,0.0023589,93264.0,93252.0,0.00994481]
[1768856406227,0.00998073,93279.0,93257.0,0.00981544]
[1768856406518,0.010726,93277.0,93259.0,0.00981544]
[1768856406726,0.010726,93277.0,93261.0,0.00981544]
[1768856407224,0.00998073,93293.0,93265.0,0.00994481]
[1768856407424,0.010724,93296.0,93276.0,0.00981544]
[1768856407616,0.010724,93297.0,93279.0,0.00981544]
[1768856407811,0.00998073,93306.0,93282.0,0.00994481]
[1768856408022,0.010723,93307.0,93285.0,0.00981544]
[1768856408329,0.00235777,93309.0,93278.0,0.0966]
[1768856408330,0.010723,93308.0,93289.0,0.00981544]
[1768856408625,0.00235726,93329.0,93294.0,0.00981544]
[1768856408926,0.00998073,93328.0,93301.0,0.00994481]
[1768856409132,0.00998073,93328.0,93290.0,0.411]
[1768856409133,0.010722,93316.0,93295.0,0.0966]
[1768856409320,0.010722,93313.0,93296.0,0.10654481]
[1768856409516,0.00235726,93329.0,93278.0,0.00994481]
[1768856409517,0.02070373,93303.0,93278.0,0.00994481]
[1768856409712,0.010724,93299.0,93279.0,0.0966]
[1768856409920,0.00998073,93303.0,93278.0,0.00994481]
[1768856410115,0.00998073,93303.0,93266.0,0.877327]
[1768856410116,0.010724,93297.0,93279.0,0.0966]
[1768856410310,0.010724,93297.0,93280.0,0.0966]
[1768856410826,0.010724,93299.0,93280.0,0.10654481]
[1768856411012,0.010724,93299.0,93280.0,0.11636025]
[1768856411724,0.010724,93295.0,93280.0,0.11636025]
[1768856411921,0.010724,93295.0,93266.0,0.8666]
[1768856411922,0.00998073,93292.0,93266.0,0.00994481]
[1768856412122,0.010726,93278.0,93268.0,0.0966]
[1768856412325,0.010726,93283.0,93262.0,0.0966]
[1768856413020,0.00016082,93282.0,93264.0,0.00981544]
[1768856413224,0.00016082,93282.0,93265.0,0.01976025]
[1768856413527,0.00016082,93282.0,93266.0,0.01976025]
[1768856413726,0.00016082,93282.0,93267.0,0.00981544]
[1768856415125,0.00016082,93282.0,93267.0,0.01976025]
[1768856415325,0.00016082,93282.0,93269.0,0.00981544]
[1768856415528,0.00016082,93282.0,93269.0,0.01976025]
[1768856415828,0.010725,93287.0,93272.0,0.00981544]
[1768856416028,0.010725,93284.0,93272.0,0.00981544]
[1768856416828,0.00998073,93293.0,93272.0,0.00981544]
[1768856417030,0.010723,93306.0,93285.0,0.01976025]
[1768856417221,0.010722,93310.0,93293.0,0.00981544]
[1768856417416,0.09656,93318.0,93297.0,0.00981544]
[1768856417725,0.00235726,93329.0,93303.0,0.00981544]
[1768856417931,0.010722,93312.0,93298.0,0.10653626]
[1768856418324,0.010722,93312.0,93299.0,0.01976025]
[1768856418635,0.010722,93312.0,93300.0,0.00981544]
[1768856418930,0.09656,93323.0,93300.0,0.00981544]
[1768856419125,0.09656,93323.0,93302.0,0.01976025]
[1768856419321,0.09656,93323.0,93298.0,0.09672082]
[1768856419322,0.010721,93322.0,93304.0,0.00981544]
[1768856419633,0.107281,93326.0,93308.0,0.00994481]
[1768856419832,0.09656,93326.0,93310.0,0.00994481]
[1768856420131,0.010721,93319.0,93309.0,2.5e-07]
[1768856420334,0.010721,93319.0,93298.0,0.09672082]
[1768856420635,0.010721,93319.0,93299.0,0.010724]
[1768856420821,0.09656,93326.0,93298.0,0.10744482]
[1768856421935,0.09656,93326.0,93300.0,0.01976025]
[1768856422132,0.09656,93326.0,93303.0,0.00981544]
[1768856422828,0.010721,93320.0,93303.0,0.01903507]
[1768856423133,0.09656,93326.0,93306.0,8e-08]
[1768856423339,0.010723,93306.0,93298.0,0.00016082]
[1768856423523,0.010723,93306.0,93295.0,0.09652]
[1768856423837,0.010723,93306.0,93294.0,0.09652]
[1768856425024,0.010722,93310.0,93294.0,0.09652]
[1768856425833,0.010723,93305.0,93294.0,0.09652]
[1768856427123,0.010723,93303.0,93294.0,0.09652]
[1768856427326,0.010723,93303.0,93286.0,0.00919608]
[1768856427327,0.010723,93303.0,93289.0,0.09652]
[1768856427631,0.010723,93304.0,93289.0,0.09652]
[1768856427829,0.01865264,93309.0,93289.0,0.09652]
[1768856428028,0.00922624,93309.0,93289.0,0.10571608]
[1768856428238,0.010722,93311.0,93292.0,0.00919608]
[1768856428531,0.010722,93311.0,93295.0,0.00921963]
[1768856428735,0.09652,93315.0,93296.0,0.00919608]
[1768856428926,0.09652,93315.0,93295.0,0.00921963]
[1768856429126,0.09652,93315.0,93289.0,0.11646463]
[1768856429326,0.10574624,93315.0,93289.0,0.11646463]
[1768856429528,0.010723,93307.0,93289.0,0.10573963]
[1768856430536,0.010723,93307.0,93290.0,0.010725]
[1768856430937,0.010723,93307.0,93290.0,0.01992108]
[1768856431538,0.010723,93307.0,93291.0,0.00919608]
[1768856431734,0.01865264,93314.0,93291.0,0.00919608]
[1768856431938,0.010723,93302.0,93289.0,0.10573963]
[1768856432538,0.00922624,93306.0,93289.0,0.09652]
[1768856432839,0.010724,93298.0,93284.0,0.09652]
[1768856434237,0.010724,93295.0,93284.0,0.09652]
[1768856434442,0.010724,93298.0,93284.0,0.09652]
[1768856435034,0.010724,93296.0,93284.0,0.09652]
[1768856436440,0.01088482,93300.0,93285.0,0.00919608]
[1768856436843,0.00016082,93300.0,93285.0,0.00919608]
[1768856437142,0.00016082,93300.0,93285.0,0.01992108]
[1768856437641,0.00016082,93300.0,93287.0,0.010725]
[1768856437838,0.00016082,93300.0,93284.0,0.107245]
[1768856438236,0.00016082,93300.0,93287.0,0.010725]
[1768856438637,0.00016082,93300.0,93284.0,0.09652]
[1768856438950,0.00016082,93300.0,93287.0,0.010725]
[1768856441336,0.00016082,93300.0,93289.0,0.010725]
[1768856441537,0.00016082,93300.0,93291.0,0.010725]
[1768856443041,0.00016082,93300.0,93291.0,0.00836672]
[1768856444860,0.00016082,93300.0,93288.0,0.00943313]
[1768856444861,0.01088482,93300.0,93287.0,0.010725]
[1768856445051,0.01088482,93300.0,93284.0,0.10595313]
[1768856445440,0.01088482,93300.0,93285.0,0.00943313]
[1768856446239,0.00016082,93300.0,93288.0,0.010725]
[1768856447050,0.00016082,93300.0,93289.0,0.010725]
[1768856447250,0.00016082,93300.0,93285.0,0.00943313]
[1768856447455,0.00016082,93300.0,93287.0,0.00943313]
[1768856448053,0.00016082,93300.0,93290.0,0.010725]
[1768856448249,0.00016082,93300.0,93290.0,0.00943313]
[1768856448455,0.00016082,93300.0,93291.0,0.00943313]
[1768856448653,0.00016082,93300.0,93292.0,0.010724]
[1768856449350,0.00016082,93300.0,93291.0,0.00943313]
[1768856449950,0.00016082,93300.0,93287.0,0.00943313]
[1768856450151,0.00016082,93300.0,93285.0,0.00946194]
[1768856450351,0.00016082,93300.0,93284.0,0.09652]
[1768856450549,0.010724,93298.0,93284.0,0.09652]
[1768856450953,0.010724,93297.0,93284.0,0.09652]
[1768856451354,0.01939569,93297.0,93275.0,0.00943313]
[1768856451554,0.01939569,93292.0,93271.0,0.00943313]
[1768856451751,0.00992636,93292.0,93272.0,0.00943313]
[1768856451953,0.00992636,93292.0,93273.0,0.00943313]
[1768856452156,0.10598933,93296.0,93275.0,0.02015913]
[1768856452545,0.10598933,93296.0,93275.0,0.00943313]
[1768856452749,0.001,93292.0,93275.0,0.00943313]
[1768856452956,0.010725,93286.0,93275.0,0.00943313]
[1768856453157,0.010725,93287.0,93275.0,0.00943313]
[1768856453757,0.010725,93285.0,93275.0,0.00943313]
[1768856453961,0.010725,93283.0,93271.0,0.00903624]
[1768856454150,0.010725,93283.0,93268.0,0.11010675]
[1768856454349,0.010726,93281.0,93268.0,0.11010675]
[1768856454550,0.010726,93279.0,93268.0,0.11914299]
[1768856455858,0.010726,93279.0,93269.0,0.00903624]
[1768856456655,0.010726,93282.0,93269.0,0.00903624]
[1768856457260,0.01326434,93289.0,93270.0,0.00903624]
[1768856457460,0.01326434,93289.0,93271.0,0.00903624]
[1768856459150,0.01326434,93289.0,93271.0,0.00667746]
[1768856460164,0.010726,93283.0,93271.0,0.00667746]
[1768856460960,0.00235839,93284.0,93271.0,0.00667746]
[1768856461164,0.01308339,93284.0,93271.0,0.00667746]
[1768856462564,0.00235839,93284.0,93272.0,0.010727]
[1768856462765,0.00235839,93284.0,93272.0,0.01976324]
[1768856463462,0.00235839,93284.0,93274.0,0.01976224]
[1768856464164,0.00235839,93284.0,93274.0,0.00903624]
[1768856466469,0.00235839,93284.0,93274.0,0.01976224]
[1768856467362,0.00235839,93284.0,93274.0,0.00903624]
[1768856467762,0.00235839,93284.0,93270.0,0.00903624]
[1768856469469,0.010725,93283.0,93270.0,0.00903624]
[1768856469864,0.00235839,93284.0,93271.0,0.00903624]
[1768856470061,0.00235839,93284.0,93273.0,0.00903624]
[1768856470262,0.010725,93283.0,93273.0,0.00903624]
[1768856470461,0.010725,93283.0,93272.0,0.01358675]
[1768856471966,0.00235839,93284.0,93273.0,0.00903624]
[1768856472864,0.00235839,93284.0,93274.0,0.010726]
[1768856473064,0.00235839,93284.0,93273.0,0.00903624]
[1768856473569,0.00235839,93284.0,93273.0,0.01976324]
[1768856474961,0.00235839,93284.0,93273.0,0.00903624]
[1768856475670,0.00235839,93284.0,93273.0,0.01976324]
[1768856476772,0.00235839,93284.0,93273.0,0.00903624]
[1768856477766,0.00235839,93284.0,93274.0,0.010726]
[1768856477964,0.00235839,93284.0,93273.0,0.00903624]
[1768856478168,0.00235839,93284.0,93276.0,0.010726]
[1768856479069,0.00235839,93284.0,93275.0,0.010726]
[1768856479768,0.01308339,93284.0,93273.0,0.00903624]
[1768856479964,0.010726,93282.0,93273.0,0.00903624]
[1768856484074,0.01308339,93284.0,93273.0,0.00903624]
[1768856484273,0.010726,93283.0,93273.0,0.00903624]
[1768856484870,0.00235839,93284.0,93273.0,0.00903624]
[1768856485175,0.01308339,93284.0,93273.0,0.00903624]
[1768856487975,0.00235839,93284.0,93273.0,0.00903624]
[1768856488377,0.00235839,93284.0,93275.0,0.010726]
[1768856488576,0.00235839,93284.0,93274.0,0.010726]
[1768856491682,0.00235839,93284.0,93273.0,0.00903624]
[1768856492385,0.00235839,93284.0,93273.0,0.01976324]
[1768856493693,0.00235839,93284.0,93273.0,0.00903624]
[1768856494482,0.010726,93283.0,93269.0,0.00981794]
[1768856494687,0.17949257,93280.0,93267.0,0.12032599]
[1768856494874,0.00235839,93284.0,93268.0,0.00981794]
[1768856495283,0.010726,93283.0,93269.0,0.010727]
[1768856495682,0.010726,93283.0,93269.0,0.02054494]
[1768856498183,0.00235839,93284.0,93271.0,0.00981794]
[1768856498487,0.00235839,93284.0,93271.0,0.02054494]
[1768856499182,0.00235839,93284.0,93271.0,0.00981794]
[1768856500389,0.00235839,93284.0,93271.0,0.02054494]
[1768856501287,0.00235839,93284.0,93263.0,0.07646949]
[1768856501288,0.010726,93278.0,93263.0,0.08595154]
[1768856501487,0.00235839,93284.0,93272.0,0.010727]
[1768856501687,0.00235839,93284.0,93270.0,0.00948205]
[1768856501990,0.00235839,93284.0,93271.0,0.02020905]
[1768856504088,0.010725,93283.0,93271.0,0.00948205]
[1768856507485,0.010725,93283.0,93270.0,0.00948205]
[1768856507692,0.00235839,93284.0,93271.0,0.010727]
[1768856508495,0.010725,93283.0,93270.0,0.00948205]
[1768856509387,0.010725,93283.0,93270.0,0.02020905]
[1768856511200,0.010725,93283.0,93270.0,0.00948205]
[1768856511982,0.00016082,93287.0,93283.0,0.010725]
[1768856512188,0.09652,93291.0,93283.0,0.010725]
[1768856512383,0.09652,93292.0,93283.0,0.010725]
[1768856512990,0.09652,93292.0,93280.0,0.010726]
[1768856513186,0.09652,93292.0,93281.0,0.010726]
[1768856513591,0.09652,93292.0,93282.0,0.010725]
[1768856514591,0.09652,93292.0,93280.0,0.010726]
[1768856515098,0.107244,93292.0,93280.0,0.010726]
[1768856515800,0.09652,93292.0,93276.0,0.00948205]
[1768856516588,0.09652,93292.0,93281.0,0.010726]
[1768856517691,0.010724,93298.0,93284.0,0.00914816]
[1768856519394,0.09652,93301.0,93284.0,0.00914816]
[1768856519892,0.09652,93301.0,93283.0,0.03215003]
[1768856520096,0.010724,93296.0,93283.0,0.03215003]
[1768856520686,0.010724,93296.0,93283.0,0.04287503]
[1768856520895,0.010724,93299.0,93286.0,0.04129819]
[1768856521100,0.010724,93299.0,93287.0,0.00914816]
[1768856521601,0.010724,93299.0,93286.0,0.04129819]
[1768856522300,0.010724,93299.0,93287.0,0.010725]
[1768856523699,0.09652,93301.0,93289.0,0.00914816]
[1768856523892,0.01308088,93304.0,93292.0,0.010724]
[1768856524099,0.00235788,93304.0,93298.0,0.00914816]
[1768856524291,0.09652,93311.0,93301.0,0.010723]
[1768856524491,0.09652,93311.0,93298.0,0.01987216]
[1768856524996,0.09652,93311.0,93298.0,0.00914816]
[1768856525301,0.010723,93308.0,93295.0,0.010724]
[1768856526307,0.010723,93305.0,93294.0,0.00914816]
[1768856526602,0.09652,93311.0,93292.0,0.00016082]
[1768856526603,0.010723,93303.0,93292.0,0.00016082]
[1768856528500,0.010724,93297.0,93292.0,0.00016082]
[1768856529002,0.010724,93300.0,93292.0,0.00016082]
[1768856529801,0.09652,93311.0,93279.0,0.09652]
[1768856529802,0.00989218,93291.0,93279.0,0.09652]
[1768856530002,0.00989218,93291.0,93279.0,0.010726]
[1768856530199,0.0320128,93292.0,93281.0,0.010726]
[1768856530501,0.00989218,93294.0,93281.0,0.010726]
[1768856530701,0.02061618,93294.0,93281.0,0.010726]
[1768856530903,0.02061618,93294.0,93278.0,0.09652]
[1768856531098,0.02061618,93294.0,93280.0,0.010726]
[1768856532004,0.09652,93301.0,93280.0,0.00914816]
[1768856532205,0.00989218,93300.0,93280.0,0.00914816]
[1768856532503,0.00989218,93299.0,93280.0,0.00914816]
[1768856532894,0.00989218,93299.0,93279.0,0.03215003]
[1768856533090,0.010724,93298.0,93286.0,0.010725]
[1768856533303,0.010724,93294.0,93282.0,0.010726]
[1768856534003,0.00989218,93296.0,93283.0,0.010725]
[1768856534215,0.00989218,93296.0,93278.0,0.09652]
[1768856534604,0.00989218,93296.0,93285.0,0.010725]
[1768856535603,0.00989218,93296.0,93279.0,0.010726]
[1768856535794,0.0427368,93300.0,93279.0,0.010726]
[1768856536002,0.09652,93304.0,93291.0,0.04129819]
[1768856536201,0.09652,93304.0,93292.0,0.01987216]
[1768856536399,0.107243,93304.0,93292.0,0.010724]
[1768856536803,0.107243,93304.0,93289.0,0.01987316]
[1768856537004,0.107243,93304.0,93291.0,0.010725]
[1768856537505,0.09652,93304.0,93293.0,0.010724]
[1768856537690,0.09652,93304.0,93290.0,0.010725]
[1768856538098,0.09652,93304.0,93286.0,0.04287503]
[1768856538298,0.00989218,93302.0,93286.0,0.010725]
[1768856538493,0.00989218,93302.0,93282.0,0.00914816]
[1768856538693,0.00989218,93302.0,93283.0,0.00914816]
[1768856539406,0.00989218,93302.0,93287.0,0.010725]
[1768856540200,0.010723,93301.0,93287.0,0.010725]
[1768856541010,0.00989218,93302.0,93285.0,0.010725]
[1768856541202,0.010723,93301.0,93285.0,0.010725]
[1768856541508,0.010724,93299.0,93285.0,0.010725]
[1768856542508,0.010724,93299.0,93285.0,0.107245]
[1768856545213,0.010724,93299.0,93287.0,0.010725]
[1768856546301,0.010724,93299.0,93286.0,0.010725]
[1768856547110,0.010723,93302.0,93288.0,0.010725]
[1768856547905,0.010724,93300.0,93286.0,0.010725]
[1768856549918,0.00922549,93299.0,93285.0,0.09652]
[1768856550107,0.00922549,93297.0,93285.0,0.09652]
[1768856551008,0.010724,93294.0,93285.0,0.09652]
[1768856552020,0.010724,93294.0,93282.0,0.09652]
[1768856552322,0.010724,93295.0,93282.0,0.107245]
[1768856552507,0.00922549,93301.0,93282.0,0.107245]
[1768856552711,0.00922549,93301.0,93282.0,0.11658785]
[1768856553017,0.010724,93298.0,93283.0,0.010725]
[1768856553607,0.010724,93298.0,93284.0,0.010725]
[1768856556521,0.010724,93297.0,93283.0,0.010725]
[1768856560927,0.010724,93300.0,93282.0,0.10586285]
[1768856561121,0.010724,93299.0,93285.0,0.010725]
[1768856561613,0.010724,93298.0,93285.0,0.010725]
[1768856564427,0.010724,93297.0,93283.0,0.010725]
[1768856564622,0.010724,93297.0,93284.0,0.010725]
[1768856565326,0.00922549,93301.0,93282.0,0.11658885]
[1768856566028,0.010724,93295.0,93282.0,0.11658885]
[1768856566729,0.010724,93295.0,93282.0,0.09652]
[1768856566730,0.00932191,93295.0,93282.0,0.09652]
[1768856567024,0.00932191,93295.0,93282.0,0.107246]
[1768856567218,0.05067594,93296.0,93282.0,0.107246]
[1768856567417,0.010724,93296.0,93282.0,0.107246]
[1768856567926,0.010724,93296.0,93283.0,0.010725]
[1768856568133,0.010724,93299.0,93285.0,0.02054849]
[1768856569229,0.010724,93297.0,93285.0,0.00982349]
[1768856569431,0.010724,93299.0,93285.0,0.02054849]
[1768856569730,0.010723,93302.0,93294.0,0.00982349]
[1768856570230,0.010723,93302.0,93293.0,0.04114924]
[1768856570430,0.010723,93302.0,93290.0,0.02054849]
[1768856571032,0.00016082,93305.0,93289.0,0.17941114]
[1768856571332,0.010724,93298.0,93289.0,0.17941114]
[1768856571630,0.010724,93296.0,93287.0,0.04114924]
[1768856572336,0.010724,93295.0,93287.0,0.04114924]
[1768856573030,0.010724,93295.0,93282.0,0.11720962]
[1768856573235,0.010724,93297.0,93283.0,0.010725]
[1768856573436,0.010724,93297.0,93283.0,0.02068962]
[1768856573631,0.0099671,93294.0,93272.0,0.00996462]
[1768856573835,0.0206911,93294.0,93280.0,0.19013714]
[1768856574033,0.0206911,93294.0,93280.0,0.010726]
[1768856574338,0.010724,93294.0,93280.0,0.19013714]
[1768856575838,0.010724,93292.0,93279.0,0.09652]
[1768856576041,0.0099671,93292.0,93279.0,0.09652]
[1768856576337,0.010725,93289.0,93279.0,0.09652]
[1768856576532,0.010725,93289.0,93276.0,0.010726]
[1768856576726,0.010725,93289.0,93273.0,0.07646949]
[1768856576925,0.010725,93289.0,93273.0,0.08643411]
[1768856577122,0.0099671,93292.0,93273.0,0.00996462]
[1768856577735,0.010725,93286.0,93272.0,0.18371649]
[1768856578235,0.0099671,93292.0,93272.0,0.107247]
[1768856579536,0.010725,93285.0,93272.0,0.107247]
[1768856580447,0.0099671,93292.0,93272.0,0.09652]
[1768856580739,0.0099671,93292.0,93271.0,0.07646949]
[1768856580930,0.0099671,93292.0,93271.0,0.08643411]
[1768856581127,0.010726,93278.0,93271.0,0.09652]
[1768856581431,0.010726,93281.0,93269.0,0.00235878]
[1768856581632,0.010726,93279.0,93269.0,0.00235878]
[1768856581830,0.0099671,93282.0,93264.0,0.0023589]
[1768856583630,0.010726,93278.0,93264.0,0.0023589]
[1768856585150,0.0099671,93278.0,93264.0,0.0023589]
[1768856585441,0.0099671,93274.0,93258.0,0.09652]
[1768856586341,0.04277681,93275.0,93258.0,0.09652]
[1768856586642,0.010727,93272.0,93258.0,0.09652]
[1768856586940,0.010727,93272.0,93260.0,0.17941114]
[1768856587743,0.04277681,93275.0,93260.0,0.17941114]
[1768856587744,0.010727,93268.0,93260.0,0.17941114]
[1768856588243,0.010727,93268.0,93258.0,0.09652]
[1768856588934,0.0099671,93274.0,93258.0,0.09652]
[1768856589128,0.010727,93267.0,93258.0,0.09652]
[1768856589530,0.04277681,93275.0,93253.0,0.09652]
[1768856589531,0.0099671,93272.0,93253.0,0.09652]
[1768856589728,0.010727,93267.0,93253.0,0.09652]
[1768856589927,0.0099671,93272.0,93253.0,0.10648462]
[1768856590342,0.0099671,93272.0,93253.0,0.11830839]
[1768856590735,0.010728,93265.0,93253.0,0.11830839]
[1768856590935,0.0099671,93269.0,93253.0,0.01182377]
[1768856591136,0.010728,93260.0,93250.0,0.17941114]
[1768856591330,0.010728,93263.0,93250.0,0.17941114]
[1768856591537,0.010728,93261.0,93250.0,0.17941114]
[1768856592339,0.010728,93264.0,93250.0,0.17941114]
[1768856592543,0.010728,93262.0,93250.0,0.19147611]
[1768856592732,0.00016082,93265.0,93250.0,0.19147611]
[1768856593437,0.00016082,93265.0,93250.0,0.01206497]
[1768856593635,0.00016082,93265.0,93249.0,0.05498037]
[1768856593839,0.010728,93259.0,93249.0,0.04501575]
[1768856594142,0.05274391,93264.0,93247.0,0.09652]
[1768856594333,0.0099671,93263.0,93247.0,0.09652]
[1768856594734,0.0099671,93263.0,93244.0,0.0023594]
[1768856594931,0.010729,93255.0,93244.0,0.0023594]
[1768856595130,0.010729,93255.0,93244.0,0.01232402]
[1768856595836,0.010729,93255.0,93244.0,0.0145881]
[1768856596743,0.0099671,93257.0,93244.0,0.0145881]
[1768856597048,0.010729,93250.0,93244.0,0.0145881]
[1768856597233,0.010729,93253.0,93244.0,0.0145881]
[1768856597432,0.010729,93251.0,93244.0,0.0145881]
[1768856597848,0.010729,93251.0,93244.0,0.0023594]
[1768856598143,0.0099671,93257.0,93240.0,0.09652]
[1768856598350,0.0099671,93256.0,93236.0,0.04265646]
[1768856598737,0.0099671,93256.0,93236.0,0.05495013]
[1768856599538,0.04277681,93257.0,93236.0,0.05495013]
[1768856599539,0.0099671,93253.0,93236.0,0.01229367]
[1768856599745,0.010729,93249.0,93234.0,0.09652]
[1768856600048,0.010729,93250.0,93234.0,0.11721562]
[1768856600342,0.010729,93250.0,93235.0,0.00996462]
[1768856601757,0.1065271,93256.0,93235.0,0.00996462]
[1768856601946,0.1065271,93256.0,93235.0,0.02218553]
[1768856602849,0.0099671,93256.0,93235.0,0.02218553]
[1768856603047,0.09656,93264.0,93252.0,0.010729]
[1768856603248,0.09656,93264.0,93254.0,0.00939146]
[1768856603447,8.2e-07,93265.0,93254.0,0.1888026]
[1768856603655,0.17941114,93280.0,93264.0,0.010728]
[1768856603656,0.010726,93278.0,93264.0,0.010728]
[1768856603951,0.09656,93279.0,93266.0,0.02011846]
[1768856604451,0.107286,93279.0,93266.0,0.02011846]
[1768856604847,0.09656,93279.0,93266.0,0.02011846]
[1768856605152,0.010725,93285.0,93273.0,0.00939146]
[1768856605343,0.09656,93286.0,93273.0,0.05437223]
[1768856605547,0.09656,93286.0,93274.0,0.00939146]
[1768856608149,0.107285,93286.0,93274.0,0.00939146]
[1768856608849,0.09656,93286.0,93273.0,0.04498077]
[1768856609155,0.09656,93286.0,93273.0,0.04262199]
[1768856610257,0.01308339,93284.0,93273.0,0.04262199]
[1768856610458,0.01308339,93284.0,93273.0,0.04026309]
[1768856612959,0.09656,93286.0,93276.0,0.00939146]
[1768856613350,0.09656,93286.0,93275.0,0.04498077]
[1768856613858,0.010725,93283.0,93275.0,0.04498077]
[1768856614058,0.09656,93286.0,93275.0,0.04498077]
[1768856614666,0.09656,93286.0,93270.0,0.00016082]
[1768856614854,0.09656,93286.0,93270.0,0.18896342]
[1768856615057,0.010725,93284.0,93270.0,0.18896342]
[1768856615672,0.010725,93284.0,93270.0,0.23394419]
[1768856615852,0.09656,93286.0,93270.0,0.23394419]
[1768856616057,0.09656,93286.0,93270.0,0.17957196]
[1768856616359,0.010726,93283.0,93270.0,0.17957196]
[1768856617464,0.107285,93286.0,93270.0,0.17957196]
[1768856618065,0.010725,93284.0,93270.0,0.00016082]
[1768856618268,0.010725,93284.0,93270.0,0.17957196]
[1768856619162,0.010725,93284.0,93271.0,0.02011846]
[1768856620667,0.107285,93286.0,93271.0,0.00939146]
[1768856622465,0.107285,93286.0,93274.0,0.010726]
[1768856622966,0.010725,93284.0,93271.0,0.010727]
[1768856625972,0.010725,93284.0,93272.0,0.010727]
[1768856626670,0.0552372,93288.0,93270.0,0.00016082]
[1768856626866,0.00915595,93287.0,93270.0,0.17957196]
[1768856627068,0.010725,93283.0,93270.0,0.19966779]
[1768856628861,0.010725,93283.0,93270.0,0.02025665]
[1768856631065,0.010725,93283.0,93272.0,0.010727]
[1768856631262,0.010725,93285.0,93272.0,0.010727]
[1768856631875,0.010725,93285.0,93270.0,0.00952965]